Cogmind - Beta 13 @@@ ROGUE MODE // 2024.03.15 @ 19:41:27 Player: Jezoensis Result: Destroyed by G-47 Trooper with Particle Gun Performance ------------- Evolutions (2) 1000 Regions Visited (5) 1000 Robots Destroyed (73) 365 Value Destroyed (1871) 1871 Prototype IDs (6) 120 Alien Tech Used (0) 0 Bonus (113) 113 TOTAL SCORE: 4469 Bonus ------- High Alert Combat Kills 33 Follower Combat Kills 113 Friendly Fire -33 Cogmind --------- Core Integrity 0/550 Matter 280/300 Energy 189/265 System Corruption 0% Temperature Cool (9) Movement Core (1600) Ox31 Location -8/Materials Parts ------- > --- POWER (1) -------- Improved Ion Engine > --- PROPULSION (3) --- Carbon-fiber Leg > --- UTILITY (5) ------ Improved Heat Sink Huge Storage Unit Visual Processing Unit Improved Sensor Array Improved Signal Interpreter > --- WEAPON (2) ------- Shock Bomb Launcher Mini Grenade Launcher > --- INVENTORY (25) --- Light Nuclear Core Wheel High-capacity Storage Unit High-capacity Matter Pod (28) Advanced Visual Processing Unit Sensor Array Sensor Array Improved Sensor Array Improved Terrain Scanner Layered Light Armor Plating Layered Light Armor Plating Long-range Tractor Beam Heavy Particle Gun Heavy Particle Cannon Heavy Particle Cannon Heavy Particle Cannon Improved Assault Rifle Improved Assault Rifle Improved Assault Rifle Rocket Launcher Heavy Mace Peak State ------------ > --- POWER ------------ Light Nuclear Core > --- PROPULSION ------- Carbon-fiber Leg Wheel Compact Wheel > --- UTILITY ---------- Improved Heat Sink High-capacity Storage Unit Visual Processing Unit Improved Sensor Array Improved Signal Interpreter > --- WEAPON ----------- Heavy Particle Gun Improved Assault Rifle > --- INVENTORY -------- Improved Ion Engine Wheel Huge Storage Unit High-capacity Matter Pod Advanced Visual Processing Unit Sensor Array Sensor Array Improved Terrain Scanner Long-range Tractor Beam Heavy Particle Cannon Heavy Particle Cannon Heavy Particle Cannon Improved Assault Rifle Shock Bomb Launcher Shock Bomb Launcher Rocket Launcher Mini Grenade Launcher Heavy Mace [Rating: 31] Favorites ----------- Power Improved Ion Engine Engine Improved Ion Engine Power Core Light Nuclear Core Propulsion Wheel Treads Light Treads Leg Carbon-fiber Leg Wheel Wheel Utility Signal Interpreter Device Improved Terrain Scanner Storage High-capacity Storage Unit Processor Signal Interpreter Hackware Hacking Suite Protection Hardened Light Armor Plating Weapon Improved Assault Rifle Energy Gun Beamcaster Ballistic Gun Improved Assault Rifle Ballistic Cannon Improved Light Cannon Launcher Rocket Launcher Impact Weapon Mace Build | -11 -10 -10 -9 -9 -8 ------- Run | Yrd Mat Min Mat Min Mat Slots Evolved 4 | . . . 2 . 2 Power . | . . . . . . Propulsion 1 | . . . . . 1 Utility 3 | . . . 2 . 1 Weapon . | . . . . . . Parts Attached 110 | 8 12 . 13 18 59 Power 9 | 1 . . 2 1 5 Engine 7 | 1 . . 1 1 4 Core 2 | . . . 1 . 1 Reactor . | . . . . . . Propulsion 28 | 3 8 . 2 6 9 Treads 9 | . 3 . 1 3 2 Leg 1 | . . . . . 1 Wheel 18 | 3 5 . 1 3 6 Hover . | . . . . . . Flight . | . . . . . . Utility 42 | 2 2 . 7 10 21 Device 25 | 1 1 . 4 7 12 Storage 6 | 1 1 . . 1 3 Processor 6 | . . . 2 . 4 Hackware 1 | . . . 1 . . Protection 4 | . . . . 2 2 Artifact . | . . . . . . Weapon 31 | 2 2 . 2 1 24 Energy Gun 9 | . . . 1 . 8 Energy Cannon . | . . . . . . Ballistic Gun 12 | 2 2 . 1 . 7 Ballistic Cannon 2 | . . . . . 2 Launcher 7 | . . . . 1 6 Special Weapon . | . . . . . . Impact Weapon 1 | . . . . . 1 Slashing Weapon . | . . . . . . Piercing Weapon . | . . . . . . Special Melee Weapon . | . . . . . . Unidentified Prototypes 4 | . 1 . . . 3 Parts Lost 19 | . 1 . . . 18 Power 3 | . . . . . 3 Propulsion 7 | . . . . . 7 Utility 2 | . 1 . . . 1 Weapon 7 | . . . . . 7 Highest Loss Streak 13 | . 1 . . . 13 To Critical Strikes . | . . . . . . Average Slot Usage (%) 98 | . 99 100 99 100 96 Engine 9 | . 14 14 7 11 6 Core 1 | . . . 3 . 1 Treads 3 | . 1 . . 3 5 Wheel 20 | . 26 28 21 18 16 Device 14 | . 13 14 12 19 14 Storage 11 | . 14 14 11 11 9 Processor 11 | . . . 12 11 19 Hackware 1 | . . . 7 . . Protection 1 | . . . . 2 1 Energy Gun 5 | . . . 5 11 7 Ballistic Gun 14 | . 28 28 16 9 6 Naked Turns . | . . . . . . Heaviest Build 100 | 15 32 32 36 61 100 Greatest Support 32 | 32 26 20 20 20 26 Greatest Overweight (x) 6 | . 1 1 1 6 4 Average Overweight (x) 1 | . . 1 1 2 2 Largest Inventory Capacity 25 | 8 15 15 15 20 25 Average Capacity 16 | 7 9 15 15 17 21 Most Carried 25 | 8 14 14 15 18 25 Average Carried 14 | 4 8 14 13 16 19 Final Capacity 25 | 8 15 15 15 20 25 Final Carried 21 | 7 14 14 15 18 21 Class Distribution -------------------- 41% | Mutant 36% | Scavenger-Skirmisher 18% | Scavenger-Mutant 3% | Scavenger-Assassin Dominant Class ---------------- Mutant | -10/Materials Mutant | -10/Mines Scavenger-Mutant | -9/Materials Scavenger-Mutant | -9/Mines Scavenger-Skirmisher | -8/Materials Resources | -11 -10 -10 -9 -9 -8 ----------- Run | Yrd Mat Min Mat Min Mat Matter Collected 2081 | 197 309 25 343 275 932 Remotely 64 | . . . . . 64 Salvage Created 2548 | 41 448 . 353 292 1414 Parts 166 | 6 32 . 25 23 80 Haulers Intercepted 5 | . 2 . . . 3 Recyclers Shooed 3 | 1 . . . . 2 Parts Field Recycled . | . . . . . . Retrieved Matter . | . . . . . . Parts Self-Destructed . | . . . . . . Prevented . | . . . . . . Kills | -11 -10 -10 -9 -9 -8 ------- Run | Yrd Mat Min Mat Min Mat Combat Hostiles Destroyed 40 | . 5 . 9 8 18 Guns 31 | . 5 . 9 8 9 Cannons 2 | . . . . . 2 AOE 7 | . . . . . 7 Classes Destroyed 15 | 1 6 . 2 2 4 Worker 5 | . 1 . . . 4 Builder 2 | . . . . 1 1 Tunneler 5 | 2 1 . . . 2 Hauler 5 | . 2 . . . 3 Recycler 2 | . 1 . . . 1 Mechanic 1 | . . . . . 1 Operator 5 | . . . 1 . 4 Watcher 8 | . 3 . 1 . 4 Swarmer 9 | . 2 . 3 4 . Grunt 18 | . 3 . 4 1 10 Duelist 1 | . . . . 1 . Sentry 6 | . . . 2 2 2 Specialist 2 | . . . . . 2 Hunter 3 | . . . . . 3 Heavy 1 | . . . . . 1 Best Kill Streak 8 | 2 4 . 5 4 8 Combat Bots Only 4 | . 2 . 4 4 4 Max Kills in Single Turn 5 | 1 1 . 1 1 5 Gunslinging . | . . . . . . Exploded 3 | . . . . . 3 Melee . | . . . . . . Uniques/NPCs Destroyed . | . . . . . . Combat | -11 -10 -10 -9 -9 -8 -------- Run | Yrd Mat Min Mat Min Mat Hostile Shots Fired 233 | . 34 4 46 25 124 Missed 48 | . 5 2 18 4 19 Damage Taken 2993 | . 273 17 334 196 2173 Core 722 | . 51 . 73 34 564 Absorbed by Shields . | . . . . . . Core Remaining (%) 84 | 100 . 79 . 73 . Volleys Fired 168 | 7 38 2 30 17 74 Largest 2 | 2 2 2 2 2 2 Hottest 114 | 40 40 46 98 98 114 Shots Fired 328 | 14 76 4 60 34 140 Gun 294 | 14 76 4 60 34 106 Cannon 20 | . . . . . 20 Launcher 14 | . . . . . 14 Special . | . . . . . . Kinetic 235 | 14 76 4 46 17 78 Thermal 56 | . . . 14 17 25 Explosive 6 | . . . . . 6 Electromagnetic 31 | . . . . . 31 Robot Hit Streak 21 | 4 6 . 21 5 20 Robot Miss Streak 4 | 2 3 4 3 2 4 Penetration Max . | . . . . . . Secondary Targets 5 | . 1 . 1 . 3 Max Gunslinging Chain 1 | . 1 . 1 . 1 Shots Hit Robots 215 | 9 44 . 43 21 98 Core Hits 118 | 2 20 . 15 10 71 Critical Kills 1 | . 1 . . . . Critical Parts Destroyed . | . . . . . . Critical Strikes 2 | . 1 . . . 1 Burn 1 | . . . . . 1 Destroy 1 | . 1 . . . . Melee Attacks 2 | . . . . . 2 Impact 2 | . . . . . 2 Slashing . | . . . . . . Piercing . | . . . . . . Sneak Attacks 1 | . . . . . 1 Combat Hostiles . | . . . . . . Follow-up Attacks . | . . . . . . Damage Inflicted 5059 | 125 563 15 812 393 3151 Guns 3317 | 125 563 15 812 393 1409 Cannons 271 | . . . . . 271 Explosions 1386 | . . . . . 1386 Melee 85 | . . . . . 85 Ramming . | . . . . . . Kinetic 2313 | 125 563 15 514 191 905 Thermal 1162 | . . . 298 202 662 Explosive 607 | . . . . . 607 Electromagnetic 892 | . . . . . 892 Impact 85 | . . . . . 85 Slashing . | . . . . . . Piercing . | . . . . . . Highest Corruption 3 | . 3 3 . . . Average Corruption 2 | . 2 3 . . . Corruption Purged . | . . . . . . Corruption Blocked . | . . . . . . Effects 5 | . 3 2 . . . Message Errors 1 | . 1 . . . . Matter Fused 1 | . . 1 . . . Heat Flow Errors 1 | . . 1 . . . Data Loss (major) 1 | . 1 . . . . Alerts 1 | . 1 . . . . Overload Shots . | . . . . . . Overflow Damage 78 | . . . . . 78 Projectiles . | . . . . . . Explosions 33 | . . . . . 33 Melee 45 | . . . . . 45 Knockbacks 1 | . . . . . 1 Impact . | . . . . . . Kinetic 1 | . . . . . 1 Secondary . | . . . . . . Self-Inflicted Damage 159 | . . . . . 159 Shots 4 | . . . . . 4 Rammed . | . . . . . . Targets Rammed . | . . . . . . Kicked . | . . . . . . Crushed . | . . . . . . Highest Temperature 410 | . 5 94 27 9 410 Average Temperature 45 | . 5 54 10 4 53 Received Heat Transfer 726 | . 72 . 81 24 549 Siege Activations . | . . . . . . Robots Corrupted . | . . . . . . Combat Hostiles . | . . . . . . Parts Fried 7 | . . . . . 7 Impact Corruptions 2 | . . . . . 2 Robots Melted . | . . . . . . Combat Hostiles . | . . . . . . Parts Melted 2 | . . . 1 1 . Heat Transferred 1867 | . . . 481 333 1053 Parts Sabotaged . | . . . . . . Parts Stolen . | . . . . . . Parts Stripped . | . . . . . . Power Chain Reactions 2 | . . . . . 2 Alert | -11 -10 -10 -9 -9 -8 ------- Run | Yrd Mat Min Mat Min Mat Peak Influence 524 | 10 308 129 329 342 524 Initial 133 | . 6 48 50 127 133 Average 201 | 3 160 57 197 265 247 Maximum Alert Level 2 | . 1 . 1 1 2 Low Security (%) 52 | 100 72 100 46 31 36 Level 1 45 | . 27 . 53 68 58 Level 2 1 | . . . . . 5 Level 3 . | . . . . . . Level 4 . | . . . . . . Level 5 . | . . . . . . High Security . | . . . . . . Max Security . | . . . . . . Squads Dispatched 7 | . 2 . 1 . 4 Investigation 4 | . 2 . 1 . 1 Extermination . | . . . . . . Reinforcement 3 | . . . . . 3 Assault . | . . . . . . Garrison . | . . . . . . Intercept . | . . . . . . Searches Triggered . | . . . . . . Construction Impeded . | . . . . . . Haulers Reinforced . | . . . . . . Active Scanning Responses . | . . . . . . Cargo Convoy Interrupts . | . . . . . . Stealth | -11 -10 -10 -9 -9 -8 --------- Run | Yrd Mat Min Mat Min Mat Distress Signals 3 | . 1 . 1 . 1 Communications Jammed . | . . . . . . Distress Signals . | . . . . . . Times Spotted 64 | . 11 3 15 9 26 Peak Tracking Total 5 | . 3 3 4 4 5 Tactical Retreats 1 | . . . . 1 . Traps | -11 -10 -10 -9 -9 -8 ------- Run | Yrd Mat Min Mat Min Mat Traps Triggered 2 | . 2 . . . . Indirectly . | . . . . . . Trap Hack Attempts . | . . . . . . Triggered . | . . . . . . Disarmed . | . . . . . . Reprogrammed . | . . . . . . Reused . | . . . . . . Traps Extracted . | . . . . . . Installed . | . . . . . . Triggered . | . . . . . . Machines | -11 -10 -10 -9 -9 -8 ---------- Run | Yrd Mat Min Mat Min Mat Machines Disabled 3 | . . . . . 3 Max in Single Turn 1 | . . . . . 1 Machines Repaired . | . . . . . . Machines Dismantled . | . . . . . . Machines Sabotaged . | . . . . . . Overloaded Fab Kills . | . . . . . . Hacking | -11 -10 -10 -9 -9 -8 --------- Run | Yrd Mat Min Mat Min Mat Machines Accessed 17 | . 6 . 4 . 7 Terminals 12 | . 4 . 3 . 5 Fabricators . | . . . . . . Repair Stations . | . . . . . . Recycling Units 4 | . 2 . 1 . 1 Scanalyzers 1 | . . . . . 1 Garrison Access . | . . . . . . Total Hacks 50 | . 19 . 13 . 18 Successful 29 | . 13 . 8 . 8 Failed 20 | . 5 . 5 . 10 Catastrophic . | . . . . . . Database Lockouts 1 | . 1 . . . . Manual 38 | . 18 . 10 . 10 Terminals 42 | . 16 . 12 . 14 Fabricators . | . . . . . . Repair Stations . | . . . . . . Recycling Units 5 | . 3 . 1 . 1 Scanalyzers 3 | . . . . . 3 Garrison Access . | . . . . . . Terminal Hacks 10 | . 5 . 5 . . Part Schematic 1 | . . . 1 . . Robot Analysis 4 | . 2 . 2 . . Prototype ID Bank 1 | . 1 . . . . Branch Access Points 2 | . 1 . 1 . . Unreport Threat 1 | . . . 1 . . Locate Traps 1 | . 1 . . . . Fabricator Hacks . | . . . . . . Repair Station Hacks . | . . . . . . Recycling Unit Hacks . | . . . . . . Scanalyzer 2 | . . . . . 2 Insert Component 1 | . . . . . 1 Analyze 1 | . . . . . 1 Garrison Access Hacks . | . . . . . . Unauthorized Hacks 17 | . 8 . 3 . 6 Terminals 12 | . 5 . 2 . 5 Track 3 | . 1 . . . 2 Botnet 5 | . 2 . 1 . 2 Operators 4 | . 2 . 1 . 1 Fabricators . | . . . . . . Repair Stations . | . . . . . . Recycling Units 5 | . 3 . 1 . 1 Monitor 1 | . 1 . . . . Tunnel 4 | . 2 . 1 . 1 Scanalyzers . | . . . . . . Garrison Access . | . . . . . . Data Cores Recovered 2 | . . . 1 . 1 Used . | . . . . . . Hacking Detections 13 | . 4 . 3 . 6 Full Trace Events 1 | . . . . . 1 Feedback Events . | . . . . . . Feedback Blocked . | . . . . . . Robot Schematics Acquired . | . . . . . . Robots Built . | . . . . . . Authchips . | . . . . . . Time . | . . . . . . Total Robot Build Rating . | . . . . . . Part Schematics Acquired 1 | . . . 1 . . Parts Built . | . . . . . . Authchips . | . . . . . . Time . | . . . . . . Total Part Build Rating . | . . . . . . Parts Repaired . | . . . . . . Time . | . . . . . . Parts Recycled . | . . . . . . Recycled Matter . | . . . . . . Retrieved Matter . | . . . . . . Retrieved Components . | . . . . . . Parts Scanalyzed 1 | . . . . . 1 Part Schematics Acquired . | . . . . . . Parts Damaged . | . . . . . . Bothacking | -11 -10 -10 -9 -9 -8 ------------ Run | Yrd Mat Min Mat Min Mat Used RIF Installer . | . . . . . . Robots Hacked . | . . . . . . Non-combat . | . . . . . . Combat . | . . . . . . Robot Hacks Applied . | . . . . . . Relay Couplers Released . | . . . . . . Fabnet Peak Effective % . | . . . . . . Robots Rewired . | . . . . . . Allies Hacked . | . . . . . . Hacks Repelled . | . . . . . . Allies | -11 -10 -10 -9 -9 -8 -------- Run | Yrd Mat Min Mat Min Mat Total Allies 4 | . . 4 . . . Largest Group 4 | . . 4 4 . . Highest-Rated Group 71 | . . 71 71 . . Highest-Rated Ally 31 | . . 31 31 . . Total Orders . | . . . . . . Ally Attacks 34 | . . 7 27 . . Total Damage 392 | . . 68 324 . . Kills 9 | . . 3 6 . . Allies Corrupted . | . . . . . . Allies Melted . | . . . . . . Intel | -11 -10 -10 -9 -9 -8 ------- Run | Yrd Mat Min Mat Min Mat Robot Analysis Total 4 | . 2 . 2 . . Derelict Logs Recovered . | . . . . . . Drone Launches . | . . . . . . Drone Recoveries . | . . . . . . Exploration | -11 -10 -10 -9 -9 -8 ------------- Run | Yrd Mat Min Mat Min Mat Turns Passed 2057 | 93 483 111 278 277 815 Spaces Moved 1258 | 60 377 111 154 163 393 Core 13 | 13 . . . . . Treads . | . . . . . . Legs . | . . . . . . Wheels 1245 | 47 377 111 154 163 393 Hover . | . . . . . . Flight . | . . . . . . Fastest Speed 50 | 50 80 95 95 95 105 Average Speed 101 | 86 87 95 95 110 118 Slowest Speed 170 | 100 95 95 95 170 140 Overloaded Moves . | . . . . . . Propulsion Burnouts . | . . . . . . Robots Hopped . | . . . . . . Cave-ins Triggered . | . . . . . . Exploration Rate (%) 35 | 5 75 28 26 41 40 Regions Visited 5 Branch Regions 2 Pre-discovered Areas 5 | . 2 . 1 1 1 Known Exits Taken 3 | . 1 . 1 1 . Unknown Exits Taken 2 | 1 . 1 . . . Scrap Searched 1 | . . . . 1 . Spaces Dug 1 | . . . . . 1 Terrain Destroyed 69 | . . . . . 69 Melee 1 | . . . . . 1 Projectile . | . . . . . . AOE 68 | . . . . . 68 Terrain Rammed . | . . . . . . Walls Destroyed . | . . . . . . Machines Disabled . | . . . . . . Actions | -11 -10 -10 -9 -9 -8 --------- Run | Yrd Mat Min Mat Min Mat Total 1689 | 84 453 112 227 223 590 Wait 56 | . 8 . 10 10 28 Move 1253 | 59 376 110 153 162 393 Hop . | . . . . . . Pick Up 61 | 9 10 . 11 8 23 Fast Attach 17 | 5 2 . 1 1 8 Attach 23 | 2 . . 4 . 17 Detach 6 | . 1 . 1 1 3 Swap 70 | 1 10 . 8 17 34 Drop 33 | 1 8 . 9 7 8 Fire 168 | 7 38 2 30 17 74 Melee 2 | . . . . . 2 Ram . | . . . . . . Kick . | . . . . . . Crush . | . . . . . . Escape Stasis . | . . . . . . Rewire . | . . . . . . Trap . | . . . . . . Miscellaneous . | . . . . . . Route ------- -11/Scrapyard -10/Materials (discovered 5 exits: *Mat x3 / *Min x2) -10/Mines -9/Materials -9/Mines -8/Materials History --------- Turn | Location | Event 8 | -11/Scrapyard | Discovered new exit (range 14) 94 | -11/Scrapyard | Entered Materials 136 | -10/Materials | Discovered new exit (range 6) 301 | -10/Materials | Discovered new exit (range 11) 306 | -10/Materials | Build established: Mutant 379 | -10/Materials | Discovered new exit (range 4) 491 | -10/Materials | Central database locked down 516 | -10/Materials | Discovered new exit (range 12) 519 | -10/Materials | Identified exit to Mines 577 | -10/Materials | Entered Mines 599 | -10/Mines | Found a hidden stash of uninstalled traps 663 | -10/Mines | Assisted by bots powering up and referring to "LRC-V3" 678 | -10/Mines | Discovered new exit (range 11) 682 | -10/Mines | Escorted by a lone wolf Derelict 688 | -10/Mines | Entered Materials 688 | -9/Materials | Accompanied by 4 allies 688 | -9/Materials | Evolved 2 slots: Utility x2 794 | -9/Materials | Identified exit to Mines 804 | -9/Materials | Lost 4 allies 966 | -9/Materials | Entered Mines 967 | -9/Mines | Assembled infested the area 1238 | -9/Mines | Discovered new exit (range 6) 1239 | -9/Mines | Learned location of Storage (-7) 1242 | -9/Mines | Identified exit to Materials 1243 | -9/Mines | Entered Materials 1243 | -8/Materials | Evolved 2 slots: Propulsion x1, Utility x1 1785 | -8/Materials | Core integrity fell below 50% 1827 | -8/Materials | Lost 13 parts (3p4n1u5w) 1845 | -8/Materials | Core integrity fell below 20% 2017 | -8/Materials | Build established: Scavenger-Skirmisher 2058 | -8/Materials | Destroyed by G-47 Trooper with Particle Gun Last Messages --------------- 02005_ G-47 Trooper destroyed. 02012_ Neutrino Reactor explodes. 02013_ ALERT: Hostiles spotted, dispatching reinforcements to Terminal M002. 02014_ W-25 Informer destroyed. 02019_ Dropped Hvy. Assault Rifle. 02021_ Acquired Imp. Assault Rifle. 02028_ Connecting with Terminal... 02033_ Acquired 22 matter. 02036_ The unstable cave ceiling collapses. 02036_ Acquired 39 matter. 02039_ T-07 Excavator is excavating. 02047_ Acquired Corrupted Imp. Sensor Array. 02050_ Acquired 32 matter. 02052_ Wheel destroyed. 02052_ Destroyed Wheel. 02052_ O-16 Technician destroyed. 02055_ Door malfunctions. 02055_ G-47 Trooper destroyed. 02056_ Com. Wheel destroyed. Map ----- +----------------------------------------------------+ | | | | | | | | | ?????????????????????????????????????????????????? | | ?????????????????????????????????????????????????? | | ?????????????????????????????????????????????????? | | ?????????????????????????????????????????????????? | | ?????????????????????????????????????????????????? | | ?????????????????????????????????????????????????? | | ???????????????????###???????????????????????????? | | ???????????????????# ???????????????????????????? | | ???????????????????# ??????????????????????????? | | ????????????? ????# ??????????????????????????? | | ?????????????? ???# ??????????????????????????? | | ??????????????? ??# ??????????????????????????? | | ???????????????# ?# ?????????????????????????? | | ???????????????# # ?????????????????????????? | | ???????????????# # ?????????????????????????? | | ???????????????# ############+###?????????? | | ????????????????? %g ??????????? | | ?????????????????? [ ????????????? | | ???????????????????? g T ???????????????? | | ?????????????##### # # #?????????????????? | | ?????????????# = #?????????????????? | | ?????????????# """ @ #?????????????????? | | ?????????????# """ = ###???????????????? | | ?????????????# """ # #t#?????????????? | | ?????????????# # #?????????????? | | ?????????????# """ # = # #?????????????? | | ?????????????# """ # ###;####???????????????? | | ?????????????# """ # =# #????????????????? | | ?????????????# #!u[#] [ #????????????????? | | ????????????????????# [[% #????????????????? | | ????????????????????# #= #????????????????? | | ??????#?????????????# #u=[# """ #??????????? ???? | | ???????#??????????#####% [# """ #??????????" ????? | | ??????????????????#!! [!# """ #?????????? ?????? | | ?????????????????##!! # #????????? ????? | | ??????????????????#|| #"" #???????? ?????? | | ??????????????????#|| #"T #???????""""?????? | | #?????????????????#!! #"" #?????? ""???????? | | ????????#?????????# ] k # = #????? ????????? | | ????#?????????????##### #######?####+####??????? | | ???#????????????????# #?????# #??????? | | ??????????????####### ####### #??????? | | ???????????????# ]# # #??????? | | ??????????????##=%= # +??????? | | ##################### !* #??????? | | !!] = ]!= = [] ###+### #??????? | +----------------------------------------------------+ Best States ------------- Heat Dissipation 45 Energy Generation 14 Energy Capacity 265 Matter Stores 300 Matter Capacity 300 Sight Range 18 Robot Scan Range 15 Terrain Scan Range 16 Terrain Scan Density 10 Armor Coverage 150 Evasion (%) 50 Recoil Reduction 2 Salvage Targeting 1 Offensive Hacking 10 Item Schematics ----------------- Hcp. Storage Unit | -9/Materials | Hacked Robot Schematics ------------------ None Fabricated ------------ Nothing Alien Tech Used ----------------- None Achievements -------------- None Challenges ------------ None Game ------ Seed CorruptionWaveLeg Manual? 0 Play Time 00:36:05 Cumulative 1059.5 hours Start 2024.03.15 @ 19:05:20 End 2024.03.15 @ 19:41:27 Sessions 1 Manual Loads 0 Difficulty Rogue Special Mode None Game No. 532 Rogue 405 Adventurer 125 Explorer 2 Win Type - Total 127 Types 99/10/8/3/3/0/0/2/2 Lore% 82 Gallery% 90 Achievement% 84 Wizard Run 0 Options --------- Layout 0 ASCII 0 Keyboard 1 Movement Numpad Keybinds 0 Fullscreen 1 Font 36/Terminus++ Map View 76x50 Zoom Use 0% Tactical HUD 1 Map Filters NONE Filters NONE Steam 1 RUN: 203fab98-69a7-4276-ab8a-b545559edd81